bitfinex/quotes_BTCUSD_20230109
["timestamp","ask_amount","ask_price","bid_price","bid_amount"]
[1673226559352,3.84263309,17175.0,17174.0,0.00530637]
[1673226559593,3.89130409,17175.0,17174.0,0.00530637]
[1673226562382,3.30211888,17175.0,17174.0,0.00530637]
[1673226563868,3.30211888,17175.0,17174.0,0.00030637]
[1673226564111,3.30211888,17175.0,17174.0,0.00020745]
[1673226564360,3.61061888,17175.0,17174.0,0.00020745]
[1673226564610,3.50395217,17175.0,17174.0,0.00020745]
[1673226564858,3.80395217,17175.0,17174.0,0.00020745]
[1673226565150,3.42910135,17175.0,17174.0,0.00020745]
[1673226565444,3.12910135,17175.0,17174.0,0.00020745]
[1673226565671,2.93576806,17175.0,17174.0,0.00020745]
[1673226565901,2.93576806,17175.0,17174.0,0.00014745]
[1673226566415,3.23576806,17175.0,17174.0,0.00014745]
[1673226566926,3.3863282,17175.0,17174.0,0.00014745]
[1673226567175,3.57966149,17175.0,17174.0,0.00014745]
[1673226567431,3.87966149,17175.0,17174.0,0.00014745]
[1673226569684,4.46190249,17175.0,17174.0,0.00014745]
[1673226570929,4.98752309,17175.0,17174.0,0.00014745]
[1673226571177,4.32995434,17175.0,17174.0,0.00014745]
[1673226571447,7.1941527,17175.0,17174.0,0.00014745]
[1673226571693,7.78524006,17175.0,17174.0,0.00014745]
[1673226572225,7.78524006,17175.0,17174.0,8.745e-05]
[1673226573536,8.39954006,17175.0,17174.0,8.745e-05]
[1673226574300,7.09216706,17175.0,17174.0,8.745e-05]
[1673226574547,6.36918156,17175.0,17174.0,8.745e-05]
[1673226574791,5.95108928,17175.0,17174.0,8.745e-05]
[1673226575813,6.3687655,17175.0,17174.0,8.745e-05]
[1673226576064,6.3687655,17175.0,17172.0,0.00778871]
[1673226576065,1.00269898,17174.0,17172.0,0.00778871]
[1673226576327,1.03385391,17173.0,17172.0,0.00778871]
[1673226576583,2.14687301,17173.0,17172.0,0.00778871]
[1673226576833,2.56529227,17173.0,17172.0,0.00778871]
[1673226577093,2.71330896,17173.0,17172.0,0.00778871]
[1673226577350,2.31820465,17173.0,17172.0,0.00778871]
[1673226577600,2.90601857,17173.0,17172.0,0.00778871]
[1673226578107,2.87060188,17173.0,17172.0,0.00778871]
[1673226578373,3.52228897,17173.0,17172.0,0.00778871]
[1673226580196,3.52228897,17173.0,17172.0,0.00533493]
[1673226582549,3.30328167,17173.0,17172.0,0.00533493]
[1673226583072,3.29478167,17173.0,17172.0,0.00533493]
[1673226583334,2.12439934,17173.0,17172.0,0.00533493]
[1673226583580,1.24052733,17173.0,17172.0,0.00533493]
[1673226584600,0.58884024,17173.0,17172.0,0.00533493]
[1673226585123,0.63751124,17173.0,17172.0,0.00533493]
[1673226585377,0.58884024,17173.0,17172.0,0.00533493]
[1673226585634,0.63751124,17173.0,17172.0,0.00533493]
[1673226585889,0.58884024,17173.0,17172.0,0.00533493]
[1673226586146,0.63751124,17173.0,17172.0,0.00533493]
[1673226586404,0.58884024,17173.0,17172.0,0.34277783]
[1673226586657,0.85035734,17173.0,17172.0,0.70772883]
[1673226587160,0.85046994,17173.0,17172.0,0.70772883]
[1673226587684,0.63328216,17173.0,17172.0,1.63954972]
[1673226587934,0.19757382,17173.0,17172.0,1.51457183]
[1673226588202,0.45897775,17173.0,17172.0,1.51457183]
[1673226588493,0.48397775,17173.0,17172.0,1.91457183]
[1673226588736,0.48397775,17173.0,17172.0,2.49691483]
[1673226589511,0.22257382,17173.0,17172.0,2.49691483]
[1673226589735,0.22257382,17173.0,17172.0,2.48191483]
[1673226589736,0.48397775,17173.0,17172.0,2.48191483]
[1673226590557,0.48397775,17173.0,17172.0,2.08191483]
[1673226590800,0.65828216,17173.0,17172.0,2.08191483]
[1673226591564,0.39687823,17173.0,17172.0,1.96901483]
[1673226591821,0.87547457,17173.0,17172.0,1.96901483]
[1673226592082,0.52691129,17173.0,17172.0,1.60406383]
[1673226592325,0.87553623,17173.0,17172.0,1.96901483]
[1673226592826,1.0941111,17173.0,17172.0,1.96901483]
[1673226593081,0.658407,17173.0,17172.0,1.96901483]
[1673226593581,0.65840695,17173.0,17172.0,1.96901483]
[1673226595381,0.65840695,17173.0,17172.0,1.74451483]
[1673226598461,0.48406298,17173.0,17172.0,1.74451483]
[1673226598753,0.65840695,17173.0,17172.0,1.74451483]
[1673226599500,0.65840695,17173.0,17172.0,1.37956383]
[1673226599748,0.83264399,17173.0,17172.0,1.37956383]
[1673226600060,0.875535,17173.0,17172.0,0.79722083]
[1673226600247,0.48401865,17173.0,17172.0,1.56217183]
[1673226602836,0.48401865,17173.0,17172.0,1.16217183]
[1673226603344,0.48401865,17173.0,17172.0,1.74451483]
[1673226603898,0.48401865,17173.0,17172.0,1.37956383]
[1673226604377,0.48401865,17173.0,17172.0,1.74451483]
[1673226604640,0.83264399,17173.0,17172.0,1.85741483]
[1673226605394,0.65828707,17173.0,17172.0,1.49246383]
[1673226605654,0.83264399,17173.0,17172.0,1.49246383]
[1673226606196,0.83264399,17173.0,17172.0,1.48746383]
[1673226606466,0.65827831,17173.0,17172.0,1.48746383]
[1673226607483,0.83249986,17173.0,17172.0,1.48746383]
[1673226607831,0.65827831,17173.0,17172.0,1.48746383]
[1673226608020,0.65827831,17173.0,17172.0,1.37456383]
[1673226609062,0.4838662,17173.0,17172.0,1.37456383]
[1673226609553,0.4838662,17173.0,17172.0,1.73951483]
[1673226609821,0.22252778,17173.0,17172.0,1.73951483]
[1673226610070,0.04831495,17173.0,17172.0,2.72185783]
[1673226610315,0.04831495,17173.0,17172.0,2.72228082]
[1673226610560,0.04831495,17173.0,17172.0,2.13493782]
[1673226611573,0.04831495,17173.0,17172.0,1.73493782]
[1673226611818,0.22252778,17173.0,17172.0,1.73493782]
[1673226612083,0.4838662,17173.0,17172.0,1.36956383]
[1673226612588,0.4838662,17173.0,17172.0,1.73451483]
[1673226613576,0.65827831,17173.0,17172.0,1.36956383]
[1673226614058,0.48384593,17173.0,17172.0,1.36956383]
[1673226614614,0.65827831,17173.0,17171.0,0.5919825]
[1673226614871,0.17422364,17172.0,17171.0,0.5919825]
[1673226615118,0.60996336,17172.0,17171.0,0.5919825]
[1673226615435,0.86216228,17172.0,17171.0,0.0096375]
[1673226616141,0.86200858,17172.0,17171.0,0.0096375]
[1673226616951,0.80557753,17172.0,17171.0,0.0096375]
[1673226617453,1.06698282,17172.0,17171.0,0.0096375]
[1673226617706,0.80557753,17172.0,17171.0,0.0096375]
[1673226618030,0.86001744,17172.0,17171.0,0.0096375]
[1673226619755,0.5115462,17172.0,17171.0,0.0096375]
[1673226620780,0.0758421,17172.0,17171.0,0.0096375]
[1673226621023,0.51188742,17172.0,17171.0,0.0096375]
[1673226621278,0.8607138,17172.0,17171.0,0.3745885]
[1673226621811,0.8607138,17172.0,17171.0,0.0096375]
[1673226622316,0.6581851,17172.0,17171.0,0.0096375]
[1673226622574,0.59859238,17172.0,17171.0,0.0096375]
[1673226622839,0.99859238,17172.0,17171.0,0.0096375]
[1673226623339,0.59859238,17172.0,17171.0,0.0096375]
[1673226624443,0.59859238,17172.0,17171.0,0.0096375]
[1673226630646,0.0758421,17172.0,17171.0,0.3745885]
[1673226631663,0.0758421,17172.0,17171.0,0.9569655]
[1673226631664,0.51225192,17172.0,17171.0,0.9569655]
[1673226631927,0.51225192,17172.0,17171.0,0.5920145]
[1673226632688,0.51225192,17172.0,17171.0,0.9569655]
[1673226633435,0.53190625,17172.0,17171.0,0.9569655]
[1673226633689,0.88102748,17172.0,17171.0,0.9569655]
[1673226634779,0.88102748,17172.0,17171.0,0.5920145]
[1673226635020,0.53190625,17172.0,17171.0,0.5920145]
[1673226635267,0.88103689,17172.0,17171.0,0.5920145]
[1673226635523,0.09549643,17172.0,17171.0,0.5920145]
[1673226635772,0.09549643,17172.0,17171.0,0.0096375]
[1673226636024,1.01824671,17172.0,17171.0,0.0096375]
[1673226636534,0.61824671,17172.0,17171.0,0.0096375]
[1673226638062,1.01824671,17172.0,17171.0,0.0096375]
[1673226638320,1.72357195,17172.0,17171.0,0.0096375]
[1673226638659,1.24949267,17172.0,17171.0,0.0096375]
[1673226638849,1.20082167,17172.0,17171.0,0.0096375]
[1673226639071,1.47794497,17172.0,17171.0,0.00954753]
[1673226639328,2.0660183,17172.0,17171.0,0.00954753]
[1673226639575,1.20082167,17172.0,17171.0,0.00954753]
[1673226640073,1.72446553,17172.0,17171.0,0.00954753]
[1673226642743,1.78316467,17172.0,17171.0,0.00954753]
[1673226642983,1.83183567,17172.0,17171.0,0.00954753]
[1673226644390,1.78316467,17172.0,17171.0,0.00954753]
[1673226645938,1.20082167,17172.0,17171.0,0.00954753]
[1673226646444,1.72441567,17172.0,17171.0,0.00954753]
[1673226646702,1.24949267,17172.0,17171.0,0.00954753]
[1673226647753,1.3243791,17172.0,17171.0,0.00954753]
[1673226648503,0.61905386,17172.0,17171.0,0.00954753]
[1673226648764,0.09549643,17172.0,17171.0,0.00954753]
[1673226649779,0.09549643,17172.0,17171.0,0.19867753]
[1673226650095,0.82623354,17172.0,17171.0,1.98834968]
[1673226650291,0.88067345,17172.0,17171.0,1.98834968]
[1673226650527,0.53166863,17172.0,17171.0,1.98834968]
[1673226650780,0.53166863,17172.0,17171.0,1.98334968]
[1673226651033,0.09539562,17172.0,17171.0,1.79421968]
[1673226651786,0.09539562,17172.0,17171.0,1.42926868]
[1673226652282,0.09539562,17172.0,17171.0,1.79421968]
[1673226653528,0.61895305,17172.0,17171.0,1.42926868]
[1673226654512,0.09539562,17172.0,17171.0,1.42926868]
[1673226654788,0.61895305,17172.0,17171.0,1.42926868]
[1673226655038,0.61895305,17172.0,17171.0,0.84689168]
[1673226657028,0.61895305,17172.0,17171.0,1.21184268]
[1673226657530,0.61895305,17172.0,17171.0,0.84689168]
[1673226658282,0.61895305,17172.0,17171.0,1.21184268]
[1673226658534,0.09539562,17172.0,17171.0,1.21184268]
[1673226660605,0.09539562,17172.0,17171.0,2.19421968]
[1673226660868,0.82681059,17172.0,17171.0,2.36281968]
[1673226661124,0.82681059,17172.0,17171.0,2.94519668]
[1673226661484,0.39021727,17172.0,17171.0,2.94519668]
[1673226661769,0.47751771,17172.0,17171.0,2.94519668]
[1673226662023,0.47751911,17172.0,17171.0,2.94519668]
[1673226662825,0.30289628,17172.0,17171.0,2.94519668]
[1673226663085,0.82681059,17172.0,17171.0,2.94519668]
[1673226663345,0.66015113,17172.0,17171.0,3.03719668]
[1673226664373,0.83473612,17172.0,17171.0,3.03796405]
[1673226664573,0.48547456,17172.0,17171.0,3.03796405]
[1673226665632,0.04895571,17172.0,17171.0,3.03796405]
[1673226665887,0.04895571,17172.0,17171.0,2.99831123]
[1673226666397,0.04895571,17172.0,17171.0,2.45558705]
[1673226666655,0.05192676,17172.0,17171.0,2.45558705]
[1673226668170,0.05192676,17172.0,17171.0,3.03796405]
[1673226670503,0.05192676,17172.0,17171.0,2.45558705]
[1673226670774,0.05192676,17172.0,17171.0,2.45481968]
[1673226671514,0.01442675,17172.0,17171.0,2.45481968]
[1673226672523,0.04056149,17172.0,17171.0,2.45481968]
[1673226672770,0.21514648,17172.0,17171.0,2.45481968]
[1673226673530,0.04724627,17172.0,17171.0,2.45481968]
[1673226673781,0.22183126,17172.0,17171.0,2.45481968]
[1673226674256,0.04724627,17172.0,17171.0,2.45558705]
[1673226674804,0.22183126,17172.0,17171.0,3.03719668]
[1673226675561,0.48376512,17172.0,17171.0,3.03719668]
[1673226675808,0.47576512,17172.0,17171.0,2.94519668]
[1673226676057,0.47576512,17172.0,17171.0,3.03719668]
[1673226676058,0.48376512,17172.0,17171.0,3.03719668]
[1673226676310,0.22183126,17172.0,17171.0,3.03719668]
[1673226677076,0.13383126,17172.0,17171.0,3.03719668]
[1673226677572,0.18256559,17172.0,17171.0,3.03719668]
[1673226679348,0.05673433,17172.0,17171.0,3.03719668]
[1673226681365,0.05673433,17172.0,17171.0,3.57770034]
[1673226681598,0.05673433,17172.0,17171.0,3.03719668]
[1673226682836,0.05673433,17172.0,17171.0,3.03796405]
[1673226684598,0.05673433,17172.0,17171.0,3.20626405]
[1673226685657,0.05673433,17172.0,17171.0,3.03796405]
[1673226692596,0.05673433,17172.0,17171.0,3.03296405]
[1673226695309,0.23116478,17172.0,17171.0,3.03296405]
[1673226698343,0.05673433,17172.0,17171.0,3.03296405]
[1673226698595,0.23116478,17172.0,17171.0,3.03296405]
[1673226703495,0.49309864,17172.0,17171.0,3.03296405]
[1673226703763,0.23116478,17172.0,17171.0,3.03296405]
[1673226708152,0.23116478,17172.0,17171.0,2.86436405]
[1673226708400,0.23116478,17172.0,17171.0,2.88557965]
[1673226708642,0.23116478,17172.0,17171.0,2.86436405]
[1673226708921,0.23116478,17172.0,17171.0,2.46359668]
[1673226709168,0.49309864,17172.0,17171.0,2.46359668]
[1673226709665,0.23116478,17172.0,17171.0,2.46359668]
[1673226711702,0.05673433,17172.0,17171.0,2.46359668]
[1673226712490,0.05673433,17172.0,17171.0,9.96436405]
[1673226712732,0.23116478,17172.0,17171.0,9.96436405]
[1673226713526,0.23116478,17172.0,17171.0,2.46436405]
[1673226715732,0.05673433,17172.0,17171.0,2.46436405]
[1673226716481,0.23116478,17172.0,17171.0,2.46436405]
[1673226718778,0.49309864,17172.0,17171.0,2.46436405]
[1673226721405,0.23116478,17172.0,17171.0,2.46436405]
[1673226721919,0.49309864,17172.0,17171.0,2.46436405]
[1673226725113,0.88560621,17172.0,17171.0,2.46359668]
[1673226725334,0.88560621,17172.0,17171.0,1.88121968]
[1673226725843,0.53634465,17172.0,17171.0,1.51626868]
[1673226726416,0.84292656,17172.0,17171.0,1.88121968]
[1673226726607,0.84292656,17172.0,17171.0,2.28121968]
[1673226726885,0.66852542,17172.0,17171.0,2.28121968]
[1673226727135,0.66852542,17172.0,17171.0,1.88121968]
[1673226727397,0.66852542,17172.0,17171.0,2.46359668]
[1673226728175,0.84292656,17172.0,17171.0,2.46359668]
[1673226728435,0.8859412,17172.0,17171.0,2.46359668]
[1673226728685,0.84292656,17172.0,17171.0,2.46359668]
[1673226729449,0.66848878,17172.0,17171.0,2.46359668]
[1673226730919,0.49365921,17172.0,17171.0,2.46359668]
[1673226734690,0.23150367,17172.0,17171.0,2.46359668]
[1673226735434,0.49365921,17172.0,17171.0,2.46359668]
[1673226735676,0.23150367,17172.0,17171.0,2.46359668]
[1673226736453,0.23150367,17172.0,17171.0,2.49601713]
[1673226736705,0.49365921,17172.0,17171.0,2.49601713]
[1673226736955,0.23150367,17172.0,17171.0,2.49601713]
[1673226737769,0.49365921,17172.0,17171.0,2.49601713]
[1673226738199,0.23150367,17172.0,17171.0,2.49601713]
[1673226738453,0.05673433,17172.0,17171.0,3.071207]
[1673226738705,0.05666452,17172.0,17171.0,12.53113325]
[1673226738955,9e-05,17175.0,17172.0,0.17483914]
[1673226739206,9e-05,17175.0,17173.0,0.74118148]
[1673226739207,0.17485934,17175.0,17173.0,0.74118148]
[1673226739449,9e-05,17175.0,17174.0,0.764951]
[1673226739696,9e-05,17175.0,17174.0,1.515926]
[1673226740194,0.48526323,17176.0,17174.0,9.015926]
[1673226740443,0.48526323,17176.0,17175.0,0.98963904]
[1673226740689,0.48526323,17176.0,17175.0,1.57188004]
[1673226740938,0.17476934,17176.0,17175.0,1.57188004]
[1673226741226,0.43692488,17177.0,17175.0,1.56688004]
[1673226741469,0.43692488,17177.0,17176.0,0.764951]
[1673226741720,0.43692488,17177.0,17176.0,1.347158]
[1673226741993,0.43692488,17177.0,17176.0,9.429365]
[1673226742472,0.44662701,17177.0,17176.0,9.429365]
[1673226743452,0.44662701,17177.0,17176.0,9.552365]
[1673226743721,0.44662701,17177.0,17176.0,2.634572]
[1673226744932,0.18447147,17177.0,17176.0,2.634572]
[1673226745184,0.18447147,17177.0,17176.0,2.87140762]
[1673226746990,0.00970213,17177.0,17176.0,2.87140762]
[1673226747238,0.18447147,17177.0,17176.0,2.87140762]
[1673226748803,0.18447147,17177.0,17176.0,2.47140762]
[1673226749088,0.44662701,17177.0,17176.0,1.287414]
[1673226749320,0.62145658,17177.0,17176.0,1.28158156]
[1673226749872,0.79576078,17177.0,17176.0,1.27574928]
[1673226750130,0.44616187,17177.0,17176.0,1.27574928]
[1673226750407,0.44616187,17177.0,17176.0,1.63513684]
[1673226752005,0.18400633,17177.0,17176.0,1.63513684]
[1673226752770,0.44616187,17177.0,17176.0,1.63513684]
[1673226753363,0.18400633,17177.0,17176.0,1.63513684]
[1673226753640,0.44616187,17177.0,17176.0,1.63513684]
[1673226753888,0.47116187,17177.0,17176.0,1.63513684]
[1673226755421,0.20900633,17177.0,17176.0,1.63513684]
[1673226755762,0.20900633,17177.0,17176.0,1.26991684]
[1673226756258,0.20900633,17177.0,17176.0,1.63513684]
[1673226756757,0.47116187,17177.0,17176.0,1.63513684]
[1673226757025,0.20900633,17177.0,17176.0,1.26991684]
[1673226757264,0.20900633,17177.0,17176.0,1.63513684]
[1673226758025,0.47116187,17177.0,17176.0,1.63513684]
[1673226758531,0.47116187,17177.0,17176.0,1.26991684]
[1673226759299,0.47114603,17177.0,17176.0,0.68770984]
[1673226759548,1.57166348,17177.0,17176.0,0.123]
[1673226759799,1.85063665,17177.0,17176.0,0.123]
[1673226760059,1.66956753,17177.0,17176.0,0.123]
[1673226760309,1.61593753,17177.0,17176.0,0.123]
[1673226760823,1.61593753,17177.0,17174.0,0.582246]
[1673226761069,0.17431521,17175.0,17174.0,0.582246]
[1673226761597,0.43578803,17175.0,17174.0,0.947466]
[1673226762348,0.43578803,17175.0,17174.0,1.074466]
[1673226762589,0.44540384,17175.0,17174.0,1.074466]
[1673226763384,1.01971906,17175.0,17174.0,0.709246]
[1673226763631,1.01971906,17175.0,17174.0,0.127]
[1673226763895,1.76816573,17175.0,17174.0,0.127]
[1673226764132,1.76816573,17175.0,17174.0,0.12691815]
[1673226765359,1.4195353,17175.0,17174.0,0.12691815]
[1673226766621,1.7682182,17175.0,17174.0,0.12691815]
[1673226766872,1.76824872,17175.0,17174.0,0.12691815]
[1673226767127,1.36824872,17175.0,17174.0,0.70919315]
[1673226767351,1.62977361,17175.0,17174.0,0.70919315]
[1673226767627,1.21542434,17175.0,17174.0,0.70919315]
[1673226767873,1.65201766,17175.0,17174.0,0.70919315]
[1673226768117,1.21542434,17175.0,17174.0,0.70919315]
[1673226768630,1.39049277,17175.0,17174.0,0.70919315]
[1673226769878,1.21545938,17175.0,17174.0,0.70919315]
[1673226770116,1.39049277,17175.0,17174.0,0.70919315]
[1673226772653,1.39049277,17175.0,17174.0,0.12691815]
[1673226773667,1.21548209,17175.0,17174.0,0.12691815]
[1673226774171,1.21548209,17175.0,17174.0,0.49213815]
[1673226774660,1.6520738,17175.0,17174.0,0.12691815]
[1673226774918,1.38949277,17175.0,17174.0,0.12691815]
[1673226775706,0.64116085,17175.0,17174.0,0.12691815]
[1673226776036,0.81554785,17175.0,17174.0,0.12691815]
[1673226776211,0.46683443,17175.0,17174.0,0.89213815]
[1673226776719,0.46683443,17175.0,17174.0,1.47441315]
[1673226777990,0.20524686,17175.0,17174.0,2.05668815]
[1673226778246,0.46683443,17175.0,17174.0,2.05668815]
[1673226778520,0.63559411,17175.0,17174.0,1.29146815]
[1673226780079,0.63559411,17175.0,17174.0,1.65668815]
[1673226780352,0.63559411,17175.0,17174.0,1.66803128]
[1673226780587,0.4612814,17175.0,17174.0,1.66803128]
[1673226780830,0.02529312,17175.0,17174.0,2.45399106]
[1673226781320,0.19969383,17175.0,17174.0,2.45399106]
[1673226783071,0.4612814,17175.0,17174.0,2.45399106]
[1673226783604,0.19969383,17175.0,17174.0,2.45399106]
[1673226783857,0.4612814,17175.0,17174.0,1.87171606]
[1673226784137,0.19969383,17175.0,17174.0,1.87171606]
[1673226784629,0.4612814,17175.0,17174.0,1.87171606]
[1673226784894,0.4612814,17175.0,17174.0,1.50649606]
[1673226785153,0.4612814,17175.0,17174.0,0.92422106]
[1673226785154,0.81059986,17175.0,17174.0,0.92422106]
[1673226785425,0.81059986,17175.0,17174.0,1.50649606]
[1673226786435,0.82079504,17175.0,17174.0,1.50649606]
[1673226787225,0.82079504,17175.0,17174.0,1.87171606]
[1673226787488,1.08250456,17175.0,17174.0,1.87171606]
[1673226787773,0.64591124,17175.0,17174.0,1.87171606]
[1673226788787,0.64591124,17175.0,17174.0,1.50649606]
[1673226789542,0.82079504,17175.0,17174.0,1.50649606]
[1673226790286,0.47208162,17175.0,17174.0,1.50649606]
[1673226791042,0.82111892,17175.0,17174.0,1.87171606]
[1673226791293,1.08289439,17175.0,17174.0,1.87171606]
[1673226791533,0.64630107,17175.0,17174.0,1.87171606]
[1673226792502,0.47178465,17175.0,17174.0,1.87171606]
[1673226793024,0.64630107,17175.0,17174.0,1.87171606]
[1673226793269,0.64630107,17175.0,17174.0,1.50649606]
[1673226794033,0.82111892,17175.0,17174.0,1.50649606]
[1673226794298,0.47208162,17175.0,17174.0,1.50649606]
[1673226796399,0.47208162,17175.0,17174.0,1.50459606]
[1673226796578,0.87208162,17175.0,17174.0,1.50459606]
[1673226797078,0.47208162,17175.0,17174.0,1.50459606]
[1673226798923,0.0354883,17175.0,17174.0,1.50459606]
[1673226799617,0.0354883,17175.0,17174.0,1.86981606]
[1673226799861,0.0354883,17175.0,17174.0,2.26981606]
[1673226800122,0.82160299,17175.0,17174.0,2.26981606]
[1673226800364,0.82160299,17175.0,17174.0,1.86981606]
[1673226800626,0.4722192,17175.0,17174.0,1.86981606]
[1673226800880,0.82160213,17175.0,17174.0,1.50459606]
[1673226801117,0.4722192,17175.0,17174.0,1.50459606]
[1673226803443,0.47223243,17175.0,17174.0,1.50459606]
[1673226803694,0.0354883,17175.0,17174.0,1.50459606]
[1673226803939,0.47224171,17175.0,17174.0,1.50459606]
[1673226804678,0.0354883,17175.0,17174.0,1.50459606]
[1673226805179,0.2109183,17175.0,17174.0,1.30091128]
[1673226805430,0.0354883,17175.0,17174.0,1.30091128]
[1673226805938,0.55904573,17175.0,17174.0,1.30091128]
[1673226806692,0.55904573,17175.0,17174.0,0.71863628]
[1673226808450,1.12059621,17175.0,17174.0,0.13636128]
[1673226808929,0.55904573,17175.0,17174.0,0.13636128]
[1673226809689,0.95904573,17175.0,17174.0,0.13636128]
[1673226810927,0.55904573,17175.0,17174.0,0.13636128]
[1673226811681,0.95904573,17175.0,17174.0,0.13636128]
[1673226812699,1.01267573,17175.0,17174.0,0.13636128]
[1673226812961,0.55904573,17175.0,17174.0,0.13636128]
[1673226814034,0.58404573,17175.0,17174.0,0.13636128]
[1673226814477,0.98404573,17175.0,17174.0,0.13636128]
[1673226815495,0.58398573,17175.0,17174.0,0.13636128]
[1673226815741,0.58398573,17175.0,17174.0,0.53636128]
[1673226816009,0.0604283,17175.0,17174.0,1.11863628]
[1673226816510,0.0604283,17175.0,17174.0,0.71863628]
[1673226821766,0.58398573,17175.0,17174.0,0.71863628]
[1673226822812,0.0604283,17175.0,17174.0,0.71863628]
[1673226824331,0.0604283,17175.0,17174.0,1.08385628]
[1673226825336,0.0604283,17175.0,17174.0,0.71863628]
[1673226826058,0.0604283,17175.0,17174.0,1.08385628]
[1673226826270,0.0604283,17175.0,17174.0,1.48385628]
[1673226826488,0.49709426,17175.0,17174.0,1.48385628]
[1673226826745,0.0604283,17175.0,17174.0,1.48385628]
[1673226827011,0.0604283,17175.0,17174.0,1.11863628]
[1673226827503,0.0604283,17175.0,17174.0,0.71863628]
[1673226827761,0.0604283,17175.0,17174.0,1.11863628]
[1673226828303,0.49709305,17175.0,17174.0,2.06613128]
[1673226828565,0.49709305,17175.0,17174.0,2.32638498]
[1673226828814,0.6717324,17175.0,17174.0,2.90865998]
[1673226829067,0.84638646,17175.0,17174.0,2.90865998]
[1673226829314,0.49706915,17175.0,17174.0,2.90865998]
[1673226830071,0.23508168,17175.0,17174.0,2.90865998]
[1673226830587,0.0604283,17175.0,17174.0,3.07835998]
[1673226830842,0.0604283,17175.0,17174.0,3.533995]
[1673226831629,0.0604283,17175.0,17174.0,3.07835998]
[1673226832865,0.49706915,17175.0,17174.0,2.90865998]
[1673226833852,0.0604283,17175.0,17174.0,2.90865998]
[1673226835101,0.23508168,17175.0,17174.0,2.90865998]
[1673226837208,0.0604283,17175.0,17174.0,2.90865998]
[1673226841495,0.0604283,17175.0,17174.0,2.90858031]
[1673226844068,0.0604283,17175.0,17174.0,1.92630531]
[1673226844069,0.23508168,17175.0,17174.0,1.92630531]
[1673226844574,0.0604283,17175.0,17174.0,1.92630531]
[1673226845340,0.23508168,17175.0,17174.0,1.92630531]
[1673226846595,0.0604283,17175.0,17174.0,1.92630531]
[1673226846923,0.0604283,17175.0,17174.0,2.50858031]
[1673226848105,0.0604283,17175.0,17174.0,2.14336031]
[1673226848359,0.23508168,17175.0,17174.0,1.92630531]
[1673226848631,0.23508168,17175.0,17174.0,2.50858031]
[1673226851377,0.49706915,17175.0,17174.0,1.92630531]
[1673226851618,0.49706915,17175.0,17174.0,2.50858031]
[1673226852105,0.49706915,17175.0,17174.0,1.92630531]
[1673226852607,0.49706915,17175.0,17174.0,1.56108531]
[1673226853115,0.49706915,17175.0,17174.0,2.50858031]
[1673226853618,0.23508168,17175.0,17174.0,2.50858031]
[1673226853873,0.0604283,17175.0,17174.0,2.50858031]
[1673226856724,0.26450092,17176.0,17175.0,0.4]
[1673226856997,0.61381755,17176.0,17175.0,1.929702]
[1673226857268,0.6113041,17176.0,17175.0,1.929702]
[1673226858334,0.6113041,17176.0,17175.0,1.617482]
[1673226858599,0.61390717,17176.0,17175.0,1.617482]
[1673226858859,0.61390717,17176.0,17175.0,1.982702]
[1673226859112,0.26459054,17176.0,17175.0,1.982702]
[1673226859371,0.61390717,17176.0,17175.0,1.982702]
[1673226859872,1.05057192,17176.0,17175.0,1.617482]
[1673226859874,1.05057192,17176.0,17175.0,1.217482]
[1673226860147,0.78858445,17176.0,17175.0,1.217482]
[1673226860387,0.78858445,17176.0,17175.0,1.582702]
[1673226860642,1.05037936,17176.0,17175.0,1.582702]
[1673226860901,0.78858445,17176.0,17175.0,1.582702]
[1673226862681,0.78858445,17176.0,17175.0,1.217482]
[1673226863195,0.78858445,17176.0,17175.0,1.582702]
[1673226863461,0.43926782,17176.0,17175.0,1.582702]
[1673226864504,0.78848522,17176.0,17175.0,1.582702]
[1673226864757,0.78848522,17176.0,17175.0,1.982702]
[1673226865531,0.78848522,17176.0,17175.0,1.582702]
[1673226865791,0.43926782,17176.0,17175.0,1.217482]
[1673226866294,0.43926782,17176.0,17175.0,1.582702]
[1673226866795,0.43926782,17176.0,17175.0,1.000461]
[1673226871879,0.43926782,17176.0,17175.0,0.635241]
[1673226872137,0.43926782,17176.0,17175.0,0.723241]
[1673226872480,0.43926782,17176.0,17175.0,1.088461]
[1673226873453,0.43926782,17176.0,17175.0,0.723241]
[1673226873972,0.43926782,17176.0,17175.0,1.088461]
[1673226876337,0.43926782,17176.0,17175.0,0.723241]
[1673226876601,0.43926782,17176.0,17175.0,1.088461]
[1673226877157,0.43926782,17176.0,17175.0,0.723241]
[1673226877690,0.43926782,17176.0,17175.0,1.423241]
[1673226877930,0.43926782,17176.0,17175.0,1.788461]
[1673226878198,0.43926782,17176.0,17175.0,1.78834523]
[1673226882297,0.78872854,17176.0,17175.0,1.78834523]
[1673226882544,0.78872854,17176.0,17175.0,2.18834523]
[1673226883769,0.78872854,17176.0,17175.0,1.78834523]
[1673226884748,0.43926782,17176.0,17175.0,1.78834523]
[1673226886959,0.43926782,17176.0,17175.0,1.42312523]
[1673226887455,0.00260307,17176.0,17175.0,1.42312523]
[1673226887714,0.43952479,17176.0,17175.0,1.42312523]
[1673226888212,0.43944574,17176.0,17175.0,2.18834523]
[1673226893001,0.31811402,17176.0,17175.0,0.841]
[1673226893272,0.31811402,17176.0,17175.0,0.141]
[1673226893523,1.38829087,17176.0,17175.0,0.141]
[1673226893771,1.92781585,17176.0,17175.0,0.141]
[1673226894265,2.32781585,17176.0,17175.0,0.141]
[1673226895013,1.38829087,17176.0,17175.0,0.141]
[1673226895272,1.91261075,17176.0,17175.0,0.141]
[1673226895516,1.85898075,17176.0,17175.0,0.141]
[1673226896771,2.25898075,17176.0,17175.0,0.141]
[1673226897259,2.84118775,17176.0,17175.0,0.141]
[1673226897506,2.89481775,17176.0,17175.0,0.141]
[1673226897755,2.84118775,17176.0,17175.0,0.141]
[1673226898065,2.91002285,17176.0,17175.0,0.141]
[1673226898317,2.85639285,17176.0,17175.0,0.141]
[1673226898574,2.91002285,17176.0,17175.0,0.141]
[1673226898830,2.85639285,17176.0,17175.0,0.141]
[1673226899085,2.91002285,17176.0,17175.0,0.141]
[1673226899339,2.4408693,17176.0,17175.0,0.141]
[1673226900106,2.1252793,17176.0,17175.0,0.141]
[1673226900363,0.34192402,17176.0,17175.0,0.141]
[1673226901935,0.74192402,17176.0,17175.0,0.136078]
[1673226902437,1.32413102,17176.0,17175.0,0.136078]
[1673226902692,1.84813245,17176.0,17175.0,0.136078]
[1673226902946,1.32413102,17176.0,17175.0,0.136078]
[1673226903194,1.84813245,17176.0,17175.0,0.136078]
[1673226903438,1.32413102,17176.0,17175.0,0.136078]
[1673226903700,1.90176245,17176.0,17175.0,0.136078]
[1673226904714,2.48396945,17176.0,17175.0,0.136078]
[1673226904961,3.02349443,17176.0,17175.0,0.136078]
[1673226905473,4.10096711,17176.0,17175.0,0.136078]
[1673226905708,4.2079479,17176.0,17175.0,0.136078]
[1673226905982,4.20794953,17176.0,17175.0,0.136078]
[1673226906248,3.67977958,17176.0,17175.0,0.136078]